fUSD/lending_fUSD_20240105
["ID","MTS","AMOUNT","RATE_DAILY","PERIOD"]
[310343934,1704480689218,-336.15340109,0.00030958,2]
[310343935,1704480689231,-4970.96659891,0.00030958,2]
[310343936,1704480689241,-500.0,0.00030958,2]
[310343937,1704480689251,-1690.47,0.00030958,2]
[310343938,1704480689261,-803.7,0.00030958,2]
[310343939,1704480689271,-500.0,0.00030958,2]
[310343940,1704480689282,-500.0,0.00030958,2]
[310343941,1704480689291,-500.0,0.00030958,2]
[310343942,1704480689300,-3955.79,0.00030958,2]
[310343943,1704480689310,-898.54,0.00030958,2]
[310343944,1704480689322,-1030.33,0.00030958,2]
[310343945,1704480689334,-500.0,0.00030958,2]
[310343946,1704480689347,-500.0,0.00030958,2]
[310343947,1704480689364,-1111.16,0.00030958,2]
[310343948,1704480689374,-500.0,0.00030958,2]
[310343949,1704480689384,-500.0,0.00030958,2]
[310343950,1704480689622,-379.16381138,0.00030958,2]
[310343951,1704480689632,-500.0,0.00030958,2]
[310343952,1704480689642,-5149.18,0.00030958,2]
[310343953,1704480689651,-500.0,0.00030958,2]
[310343954,1704480689660,-213.22742971,0.00030958,2]
[310343955,1704480689672,-286.77257029,0.00030958,2]
[310343956,1704480689682,-500.0,0.00030958,2]
[310343957,1704480689691,-500.0,0.00030958,2]
[310343958,1704480689701,-1576.41,0.00030958,2]
[310343959,1704480689711,-522.79,0.00030958,2]
[310343960,1704480689721,-500.0,0.00030958,2]
[310343961,1704480689731,-64.49405287,0.00030958,2]
[310343962,1704480689745,-341.82,0.00030958,2]
[310343963,1704480689759,-999.63594713,0.00030958,2]
[310343964,1704480689770,-500.0,0.00030958,2]
[310343965,1704480689780,-1224.00306333,0.00030958,2]
[310343966,1704480689793,-536.28001313,0.00030958,2]
[310343967,1704480689805,-672.0,0.00030958,2]
[310343968,1704480689816,-1383.77692354,0.00030958,2]
[310343969,1704480689825,-731.35,0.00030958,2]
[310343970,1704480689835,-500.0,0.00030958,2]
[310343971,1704480689844,-2941.14,0.00030958,2]
[310343972,1704480689854,-500.0,0.00030958,2]
[310343973,1704480689864,-500.0,0.00030958,2]
[310343974,1704480689873,-1889.83,0.00030958,2]
[310343975,1704480689882,-500.0,0.00030958,2]
[310343976,1704480689891,-500.0,0.00030958,2]
[310343977,1704480689901,-1449.26,0.00030958,2]
[310343978,1704480689910,-500.0,0.00030958,2]
[310343979,1704480689919,-500.0,0.00030958,2]
[310343980,1704480689928,-500.0,0.00030958,2]
[310343981,1704480689938,-2163.54,0.00030958,2]
[310343982,1704480689947,-880.07,0.00030958,2]
[310343983,1704480689956,-500.0,0.00030958,2]
[310343984,1704480689966,-500.0,0.00030958,2]
[310343985,1704480689975,-500.0,0.00030958,2]
[310343986,1704480689985,-245.99015973,0.00030958,2]
[310343987,1704480689994,-1444.11,0.00030958,2]
[310343988,1704480690003,-500.0,0.00030958,2]
[310343989,1704480690012,-500.0,0.00030958,2]
[310343990,1704480690021,-500.0,0.00030958,2]
[310343991,1704480690031,-251.32583066,0.00030958,2]
[310343992,1704480690040,-627.38,0.00030958,2]
[310343993,1704480690050,-5344.23,0.00030958,2]
[310343994,1704480690059,-335.39575083,0.00030958,2]
[310343995,1704480690068,-3121.5,0.00030958,2]
[310343996,1704480690078,-3785.04,0.00030958,2]
[310343997,1704480690087,-1804.6245884,0.00030958,2]
[310343998,1704480690100,-1592.8654116,0.00030958,2]
[310343999,1704480690110,-677.34,0.00030958,2]
[310344000,1704480690121,-500.0,0.00030958,2]
[310344001,1704480690131,-500.0,0.00030958,2]
[310344002,1704480690141,-500.0,0.00030958,2]
[310344003,1704480690151,-1041.28,0.00030958,2]
[310344004,1704480690160,-500.0,0.00030958,2]
[310344005,1704480690170,-500.0,0.00030958,2]
[310344006,1704480690180,-500.0,0.00030958,2]
[310344007,1704480690189,-651.93,0.00030958,2]
[310344008,1704480690199,-500.0,0.00030958,2]
[310344009,1704480690208,-500.0,0.00030958,2]
[310344010,1704480690218,-500.0,0.00030958,2]
[310344011,1704480690228,-500.0,0.00030958,2]
[310344012,1704480690239,-906.52,0.00030958,2]
[310344013,1704480690249,-500.0,0.00030958,2]
[310344014,1704480690258,-500.0,0.00030958,2]
[310344015,1704480690268,-500.0,0.00030958,2]
[310344016,1704480690278,-7789.26705023,0.00030958,2]
[310344017,1704480690292,-5445.61294977,0.00030958,2]
[310344018,1704480690301,-500.0,0.00030958,2]
[310344019,1704480690311,-500.0,0.00030958,2]
[310344020,1704480690320,-500.0,0.00030958,2]
[310344021,1704480690330,-7924.64,0.00030958,2]
[310344022,1704480690339,-500.0,0.00030958,2]
[310344023,1704480690348,-775.66,0.00030958,2]
[310344024,1704480690358,-500.0,0.00030958,2]
[310344025,1704480690367,-500.0,0.00030958,2]
[310344026,1704480690377,-500.0,0.00030958,2]
[310344027,1704480690387,-500.0,0.00030958,2]
[310344028,1704480690397,-3544.21,0.00030958,2]
[310344029,1704480690407,-139.75125023,0.00030958,2]
[310344030,1704480690812,-500.11320425,0.00030135,4]
[310344031,1704480690822,-500.0,0.00030136,2]
[310344032,1704480690832,-309.10767621,0.0003041,2]
[310344033,1704480690844,-190.89232379,0.0003041,2]
[310344034,1704480690854,-118.59825346,0.00030958,2]
[310344035,1704480690866,-875.57097401,0.00030958,2]
[310344036,1704480690958,-1056.6895223,0.00030958,2]
[310344037,1704480690969,-1425.2,0.00030958,2]
[310344038,1704480690980,-500.0,0.00030958,2]
[310344039,1704480690990,-1114.93381864,0.00030958,2]
[310344040,1704480691002,-1185.71618136,0.00030958,2]
[310344041,1704480691012,-500.0,0.00030958,2]
[310344042,1704480691021,-548.4,0.00030958,2]
[310344043,1704480691031,-354.58976908,0.00030958,2]
[310344044,1704480691042,-145.41023092,0.00030958,2]
[310344045,1704480691053,-500.0,0.00030958,2]
[310344046,1704480691063,-38.43325694,0.00030958,2]
[310344047,1704480691079,-409.248,0.00030958,2]
[310344048,1704480691142,-500.0,0.00030684,2]
[310344049,1704480691151,-52.31874306,0.00030958,2]
[310344050,1704480691161,-500.0,0.00030958,2]
[310344051,1704480691171,-500.0,0.00030958,2]
[310344052,1704480691181,-500.0,0.00030958,2]
[310344053,1704480691191,-500.0,0.00030958,2]
[310344054,1704480691201,-500.0,0.00030958,2]
[310344055,1704480691210,-500.0,0.00030958,2]
[310344056,1704480691220,-500.0,0.00030958,2]
[310344057,1704480691229,-601.49,0.00030958,2]
[310344058,1704480691239,-1828.54,0.00030958,2]
[310344059,1704480691249,-500.0,0.00030958,2]
[310344060,1704480691259,-500.0,0.00030958,2]
[310344061,1704480691269,-500.0,0.00030958,2]
[310344062,1704480691279,-500.0,0.00030958,2]
[310344063,1704480691289,-500.0,0.00030958,2]
[310344064,1704480691299,-2528.13,0.00030958,2]
[310344065,1704480691309,-500.0,0.00030958,2]
[310344066,1704480691318,-615.94,0.00030958,2]
[310344067,1704480691328,-500.0,0.00030958,2]
[310344068,1704480691338,-1186.12,0.00030958,2]
[310344069,1704480691348,-3513.44,0.00030958,2]
[310344070,1704480691358,-5022.3,0.00030958,2]
[310344071,1704480691368,-500.0,0.00030958,2]
[310344072,1704480691377,-1503.22,0.00030958,2]
[310344073,1704480691387,-500.0,0.00030958,2]
[310344074,1704480691397,-500.0,0.00030958,2]
[310344075,1704480691406,-500.0,0.00030958,2]
[310344076,1704480691416,-500.0,0.00030958,2]
[310344077,1704480691425,-500.0,0.00030958,2]
[310344078,1704480691435,-652.87,0.00030958,2]
[310344079,1704480691445,-500.0,0.00030958,2]
[310344080,1704480691454,-500.0,0.00030958,2]
[310344081,1704480691464,-721.27,0.00030958,2]
[310344082,1704480691473,-500.0,0.00030958,2]
[310344083,1704480691484,-1250.89,0.00030958,2]
[310344084,1704480691494,-1522.08,0.00030958,2]
[310344085,1704480691504,-500.0,0.00030958,2]
[310344086,1704480691513,-500.0,0.00030958,2]
[310344087,1704480691522,-500.0,0.00030958,2]
[310344088,1704480691532,-500.0,0.00030958,2]
[310344089,1704480691541,-1815.16,0.00030958,2]
[310344090,1704480691551,-500.0,0.00030958,2]
[310344091,1704480691562,-3219.46,0.00030958,2]
[310344092,1704480691572,-500.0,0.00030958,2]
[310344093,1704480691582,-500.0,0.00030958,2]
[310344094,1704480691591,-3615.0,0.00030958,2]
[310344095,1704480691601,-596.14,0.00030958,2]
[310344096,1704480691610,-664.53,0.00030958,2]
[310344097,1704480691619,-500.0,0.00030958,2]
[310344098,1704480691629,-652.7,0.00030958,2]
[310344099,1704480691639,-527.79,0.00030958,2]
[310344100,1704480691650,-500.0,0.00030958,2]
[310344101,1704480691660,-500.0,0.00030958,2]
[310344102,1704480691670,-908.02,0.00030958,2]
[310344103,1704480691681,-917.41,0.00030958,2]
[310344104,1704480691692,-3148.19,0.00030958,2]
[310344105,1704480691703,-500.0,0.00030958,2]
[310344106,1704480691713,-154.76,0.00030958,2]
[310344107,1704480691724,-1836.51,0.00030958,2]
[310344108,1704480691734,-500.0,0.00030958,2]
[310344109,1704480691745,-1113.69,0.00030958,2]
[310344110,1704480691755,-500.0,0.00030958,2]
[310344111,1704480691765,-2073.33,0.00030958,2]
[310344112,1704480691776,-2286.36,0.00030958,2]
[310344113,1704480691788,-500.0,0.00030958,2]
[310344114,1704480691798,-500.0,0.00030958,2]
[310344115,1704480691807,-2457.63,0.00030958,2]
[310344116,1704480691817,-604.19,0.00030958,2]
[310344117,1704480691828,-4007.43,0.00030958,2]
[310344118,1704480691838,-2113.29,0.00030958,2]
[310344119,1704480691848,-2867.41,0.00030958,2]
[310344120,1704480691857,-500.0,0.00030958,2]
[310344121,1704480691866,-500.0,0.00030958,2]
[310344122,1704480691876,-500.0,0.00030958,2]
[310344123,1704480691887,-706.13,0.00030958,2]
[310344124,1704480691897,-500.0,0.00030958,2]
[310344125,1704480691907,-500.0,0.00030958,2]
[310344126,1704480691917,-658.86,0.00030958,2]
[310344127,1704480691926,-500.0,0.00030958,2]
[310344128,1704480691935,-500.0,0.00030958,2]
[310344129,1704480691945,-500.0,0.00030958,2]
[310344130,1704480691955,-500.0,0.00030958,2]
[310344131,1704480691965,-500.0,0.00030958,2]
[310344132,1704480691975,-1268.94,0.00030958,2]
[310344133,1704480691985,-500.0,0.00030958,2]
[310344134,1704480691995,-19373.23,0.00030958,2]
[310344135,1704480692005,-500.0,0.00030958,2]
[310344136,1704480692015,-2216.67,0.00030958,2]
[310344137,1704480692024,-500.0,0.00030958,2]
[310344138,1704480692035,-500.0,0.00030958,2]
[310344139,1704480692043,-3080.48,0.00030958,2]
[310344140,1704480692053,-500.0,0.00030958,2]
[310344141,1704480692062,-500.0,0.00030958,2]
[310344142,1704480692072,-1327.94,0.00030958,2]
[310344143,1704480692082,-4277.93,0.00030958,2]
[310344144,1704480692092,-480.0,0.00030958,2]
[310344145,1704480692102,-319.43966491,0.00030958,2]
[310344146,1704480692111,-500.0,0.00030958,2]
[310344147,1704480692121,-500.0,0.00030958,2]
[310344148,1704480692130,-500.0,0.00030958,2]
[310344149,1704480692140,-500.0,0.00030958,2]
[310344150,1704480692150,-500.0,0.00030958,2]
[310344151,1704480692159,-500.0,0.00030958,2]
[310344152,1704480692169,-500.0,0.00030958,2]
[310344153,1704480692179,-1000.0,0.00030958,2]
[310344154,1704480692188,-1188.16,0.00030958,2]
[310344155,1704480692198,-500.0,0.00030958,2]
[310344156,1704480692208,-500.0,0.00030958,2]
[310344157,1704480692217,-1522.78,0.00030958,2]
[310344158,1704480692227,-500.0,0.00030958,2]
[310344159,1704480692237,-500.0,0.00030958,2]
[310344160,1704480692251,-500.0,0.00030958,2]
[310344161,1704480692260,-500.0,0.00030958,2]
[310344162,1704480692270,-500.0,0.00030958,2]
[310344163,1704480692280,-1774.93,0.00030958,2]
[310344164,1704480692293,-1336.04,0.00030958,2]
[310344165,1704480692302,-28273.93,0.00030958,2]
[310344166,1704480692312,-534.19,0.00030958,2]
[310344167,1704480692323,-2530.59,0.00030958,2]
[310344168,1704480692333,-500.0,0.00030958,2]
[310344169,1704480692343,-500.0,0.00030958,2]
[310344170,1704480692353,-905.86,0.00030958,2]
[310344171,1704480692363,-2239.88,0.00030958,2]
[310344172,1704480692372,-1930.92,0.00030958,2]
[310344173,1704480692382,-558.64,0.00030958,2]
[310344174,1704480692391,-500.0,0.00030958,2]
[310344175,1704480692401,-500.0,0.00030958,2]
[310344176,1704480692411,-500.0,0.00030958,2]
[310344177,1704480692421,-500.0,0.00030958,2]
[310344178,1704480692431,-3674.01,0.00030958,2]
[310344179,1704480692441,-500.0,0.00030958,2]
[310344180,1704480692451,-500.0,0.00030958,2]
[310344181,1704480692462,-1097.58,0.00030958,2]
[310344182,1704480692471,-2537.94,0.00030958,2]
[310344183,1704480692481,-500.0,0.00030958,2]
[310344184,1704480692492,-500.0,0.00030958,2]
[310344185,1704480692502,-500.0,0.00030958,2]
[310344186,1704480692512,-597.02,0.00030958,2]
[310344187,1704480692522,-3115.93,0.00030958,2]
[310344188,1704480692532,-500.0,0.00030958,2]
[310344189,1704480692542,-500.0,0.00030958,2]
[310344190,1704480692552,-691.2,0.00030958,2]
[310344191,1704480692562,-500.0,0.00030958,2]
[310344192,1704480692572,-870.18,0.00030958,2]
[310344193,1704480692582,-3107.08,0.00030958,2]
[310344194,1704480692593,-500.0,0.00030958,2]
[310344195,1704480692603,-500.0,0.00030958,2]
[310344196,1704480692613,-637.81,0.00030958,2]
[310344197,1704480692622,-5515.69,0.00030958,2]
[310344198,1704480692632,-500.0,0.00030958,2]
[310344199,1704480692641,-2010.84,0.00030958,2]
[310344200,1704480692651,-1169.84,0.00030958,2]
[310344201,1704480692660,-500.0,0.00030958,2]
[310344202,1704480692670,-3011.55,0.00030958,2]
[310344203,1704480692679,-500.0,0.00030958,2]
[310344204,1704480692689,-1822.26,0.00030958,2]
[310344205,1704480692699,-500.0,0.00030958,2]
[310344206,1704480692709,-1884.38,0.00030958,2]
[310344207,1704480692718,-500.0,0.00030958,2]
[310344208,1704480692728,-500.0,0.00030958,2]
[310344209,1704480692737,-500.0,0.00030958,2]
[310344210,1704480692747,-1549.13,0.00030958,2]
[310344211,1704480692757,-500.0,0.00030958,2]
[310344212,1704480692770,-582.33,0.00030958,2]
[310344213,1704480692779,-500.0,0.00030958,2]
[310344214,1704480692789,-1113.13,0.00030958,2]
[310344215,1704480692799,-500.0,0.00030958,2]
[310344216,1704480692810,-500.0,0.00030958,2]
[310344217,1704480692819,-734.97,0.00030958,2]
[310344218,1704480692829,-500.0,0.00030958,2]
[310344219,1704480692839,-2359.55,0.00030958,2]
[310344220,1704480692849,-1634.85,0.00030958,2]
[310344221,1704480692859,-500.0,0.00030958,2]
[310344222,1704480692869,-6257.57,0.00030958,2]
[310344223,1704480692878,-500.0,0.00030958,2]
[310344224,1704480692888,-2136.09,0.00030958,2]
[310344225,1704480692897,-500.0,0.00030958,2]
[310344226,1704480692907,-500.0,0.00030958,2]
[310344227,1704480692916,-500.0,0.00030958,2]
[310344228,1704480692926,-1571.88,0.00030958,2]
[310344229,1704480692936,-500.0,0.00030958,2]
[310344230,1704480692945,-2605.04,0.00030958,2]
[310344231,1704480692954,-500.0,0.00030958,2]
[310344232,1704480692967,-4638.74,0.00030958,2]
[310344233,1704480692976,-500.0,0.00030958,2]
[310344234,1704480692986,-618.64,0.00030958,2]
[310344235,1704480692996,-659.85,0.00030958,2]
[310344236,1704480693006,-997.06,0.00030958,2]
[310344237,1704480693016,-500.0,0.00030958,2]
[310344238,1704480693026,-500.0,0.00030958,2]
[310344239,1704480693036,-1883.22,0.00030958,2]
[310344240,1704480693046,-500.0,0.00030958,2]
[310344241,1704480693056,-500.0,0.00030958,2]
[310344242,1704480693066,-2426.1,0.00030958,2]
[310344243,1704480693076,-7992.41,0.00030958,2]
[310344244,1704480693318,-578.9,0.00030958,2]
[310344245,1704480693329,-1186.35,0.00030958,2]
[310344246,1704480693339,-1347.71,0.00030958,2]
[310344247,1704480693349,-500.0,0.00030958,2]
[310344248,1704480693358,-2756.92,0.00030958,2]
[310344249,1704480693368,-500.0,0.00030958,2]
[310344250,1704480693377,-500.0,0.00030958,2]
[310344251,1704480693387,-500.0,0.00030958,2]
[310344252,1704480693395,-500.0,0.00030958,2]
[310344253,1704480693404,-723.98,0.00030958,2]
[310344254,1704480693414,-206.254026,0.00030958,7]
[310344255,1704480693423,-206.254026,0.00030958,7]
[310344256,1704480693433,-206.254026,0.00030958,7]
[310344257,1704480693442,-206.254026,0.00030958,7]
[310344258,1704480693451,-170.735009,0.00030958,7]
[310344259,1704480693461,-151.0,0.00030958,7]
[310344260,1704480693470,-1260.0,0.00030958,7]
[310344261,1704480693480,-1260.0,0.00030958,7]
[310344262,1704480693489,-1260.0,0.00030958,7]
[310344263,1704480693498,-1260.0,0.00030958,7]
[310344264,1704480693508,-635.2554008,0.00030978,2]
[310344265,1704480693517,-34.19400187,0.00030999,2]
[310344266,1704480693948,-511.08599813,0.00030999,2]
[310344267,1704480693958,-3186.15014769,0.00031,2]
[310344268,1704480693970,-46813.84985231,0.00031,2]
[310344269,1704480693980,-2000.0,0.00031,2]
[310344270,1704480693989,-450.0,0.00031,3]
[310344271,1704480694000,-3000.0,0.00031,2]
[310344272,1704480694009,-500.0,0.00031016,2]
[310344273,1704480694019,-3000.0,0.0003104,2]
[310344274,1704480694029,-250.11,0.00031049,2]
[310344275,1704480694038,-153.84,0.0003105,2]
[310344276,1704480694048,-437.19716092,0.00031059,5]
[310344277,1704480694057,-10305.56008283,0.000311,4]
[310344278,1704480694067,-2434.24593452,0.00031112,2]
[310344279,1704480694076,-160.43,0.00031175,2]
[310344280,1704480694085,-545.28,0.00031231,2]
[310344281,1704480694095,-545.28,0.00031231,2]
[310344282,1704480694104,-150.0,0.00031231,2]
[310344283,1704480694113,-1315.40101632,0.00031232,3]
[310344285,1704480701796,1406.39666663,9e-05,2]
[310344286,1704480701859,1807.85629119,0.00022501,2]
[310344287,1704480702644,701.03507762,0.00018,2]
[310344288,1704480704709,928.13773662,0.0002,2]
[310344295,1704480719837,-553.00582169,0.00022768,2]
[310344296,1704480719859,-363.37339701,0.00022769,2]
[310344297,1704480719881,-170.83,0.00022801,2]
[310344298,1704480719902,-500.00466881,0.00022998,2]
[310344299,1704480719923,-349.03154166,0.00022999,2]
[310344300,1704480719945,-63.75457083,0.00022999,2]
[310344301,1704480721067,-2000.0,0.00022989,2]
[310344302,1704480721478,-2000.0,0.00022989,2]
[310344303,1704480721830,-2000.0,0.00022989,2]
[310344304,1704480722167,-2000.0,0.00022989,2]
[310344305,1704480722570,-2000.0,0.00022989,2]
[310344306,1704480722934,-2000.0,0.00022989,2]
[310344307,1704480723246,957.02599882,0.00022077,2]
[310344308,1704480723283,-2000.0,0.00022989,2]
[310344309,1704480723608,-2000.0,0.00022989,2]
[310344310,1704480723933,-2000.0,0.00022989,2]
[310344312,1704480724300,-1476.15034021,0.00022989,2]
[310344313,1704480724322,-523.84965979,0.00022998,2]
[310344314,1704480724627,-415.57847339,0.00022998,2]
[310344315,1704480724651,-1584.42152661,0.00022999,2]
[310344316,1704480725231,-2000.0,0.00022999,2]
[310344317,1704480725821,-2000.0,0.00022999,2]
[310344318,1704480725873,-2000.0,0.00022999,2]
[310344319,1704480726670,-2000.0,0.00022999,2]
[310344321,1704480727042,-2000.0,0.00022999,2]
[310344322,1704480727347,-2000.0,0.00022999,2]
[310344323,1704480727739,-2000.0,0.00022999,2]
[310344324,1704480728216,-2000.0,0.00022999,2]
[310344325,1704480728522,-2000.0,0.00022999,2]
[310344326,1704480728928,-2000.0,0.00022999,2]
[310344327,1704480729283,-630.04848623,0.00022998,2]
[310344328,1704480729305,-1369.95151377,0.00022999,2]
[310344329,1704480729648,-2000.0,0.00022999,2]
[310344330,1704480729984,-2000.0,0.00022999,2]
[310344331,1704480730969,-1763.54384261,0.00022998,2]
[310344332,1704480730993,-236.45615739,0.00022998,2]
[310344334,1704480731365,-2000.0,0.00022998,2]
[310344335,1704480731886,3562.96820905,0.00020698,5]
[310344336,1704480737672,558.77925553,0.00020467,2]
[310344337,1704480737806,265.03504503,0.00021848,2]
[310344339,1704480751369,-670.9951114,0.00022997,2]
[310344340,1704480751391,-514.92796427,0.00022997,2]
[310344341,1704480751413,-814.07692433,0.00022998,2]
[310344342,1704480752057,-840.00822733,0.00022998,2]
[310344343,1704480752080,-234.570411,0.00022998,2]
[310344344,1704480752102,-531.4799928,0.00022998,2]
[310344345,1704480752123,-393.94136887,0.00022998,2]
[310344346,1704480753738,-362.96523267,0.00022998,2]
[310344347,1704480753760,-166.45427872,0.00022998,2]
[310344348,1704480753782,-370.17576062,0.00022998,2]
[310344349,1704480753804,-158.95457306,0.00022998,2]
[310344350,1704480754151,-541.73644452,0.00022998,2]
[310344351,1704480754173,-155.0,0.00022998,2]
[310344352,1704480754195,-244.71371041,0.00022998,2]
[310344353,1704480756541,1094.91415065,0.00021848,2]
[310344354,1704480760654,-1382.74,0.00022998,2]
[310344355,1704480767879,360.27718887,0.00021848,2]
[310344356,1704480769039,727.58510823,0.00021,2]
[310344357,1704480772303,957.69933389,0.00021848,2]
[310344358,1704480789871,484.00999694,0.00021848,2]
[310344359,1704480791034,325.66115351,0.00021,2]
[310344360,1704480804729,1859.77214857,0.00021848,2]
[310344363,1704480807382,533.48577018,0.00021848,2]
[310344374,1704480845148,183.46784907,0.0002244,2]
[310344376,1704480848561,14807.82852181,0.0002,2]
[310344377,1704480852450,1262.621559,0.00022426,2]
[310344379,1704480864927,40686.46914199,0.00022,2]
[310344387,1704480939537,182.98,0.0002325,10]
[310344395,1704480997565,2042.36744005,0.00022501,2]
[310344396,1704481002589,713.34,0.00022438,2]
[310344397,1704481003183,2000.0,0.00022438,2]
[310344398,1704481013959,710.32,0.00022366,2]
[310344400,1704481026393,172.32,0.00022413,2]
[310344401,1704481034991,175.81,0.00022,2]
[310344402,1704481035318,533.16,0.00022366,2]
[310344403,1704481035725,533.16,0.00022484,2]
[310344405,1704481057396,2207.6,0.00022079,2]
[310344406,1704481067280,1569.23,0.00022079,2]
[310344407,1704481081655,310277.0,0.00022316,2]
[310344408,1704481110727,213.86396467,0.00022439,2]
[310344409,1704481116681,213.86396466,0.00022444,2]
[310344410,1704481122666,213.86396466,0.00022448,2]
[310344411,1704481138052,282.85255823,0.00022,2]
[310344412,1704481150995,174.27,0.00022125,2]
[310344413,1704481167487,500.0,0.00022129,2]
[310344414,1704481171641,586.31,0.00020188,2]
[310344415,1704481172063,586.31,0.00022452,2]
[310344417,1704481189116,155.14981499,0.0002244,2]
[310344418,1704481225243,1979.13,0.00021937,2]
[310344419,1704481227867,168.33,0.00017549,2]
[310344420,1704481241746,23900.0,0.00021937,2]
[310344422,1704481264582,200.0,0.00021932,2]
[310344423,1704481277229,1956.39,0.00021951,2]
[310344427,1704481320805,200.0,0.00021981,2]
[310344433,1704481365424,1359.85,0.00022137,2]
[310344434,1704481370554,2038.52,0.00021976,2]
[310344435,1704481398230,182.98,0.00021976,10]
[310344436,1704481417244,3037.08558605,0.000225,2]
[310344437,1704481431070,-600.0,0.00022501,2]
[310344438,1704481434118,315.52,0.00021961,2]
[310344439,1704481447184,1581.48,0.00021942,2]
[310344440,1704481462393,172.32,0.00021942,2]
[310344441,1704481465888,395.11,0.00022107,2]
[310344442,1704481466099,395.11,0.00022168,2]
[310344443,1704481466326,395.11,0.00022228,2]
[310344444,1704481466719,395.11,0.00022289,2]
[310344445,1704481467117,395.11,0.0002235,2]
[310344446,1704481467338,395.11,0.0002241,2]
[310344447,1704481467767,395.11,0.00022471,2]
[310344448,1704481472216,5874.4461,0.00022439,2]
[310344449,1704481474736,665.78,0.00021833,2]
[310344450,1704481476153,620.48589227,0.00022438,2]
[310344451,1704481476199,500.0,0.00021833,2]
[310344452,1704481497894,1996.88,0.00022017,2]
[310344453,1704481498160,589.17328263,0.00022075,2]
[310344454,1704481544565,150.0,0.00022031,2]
[310344455,1704481576687,2000.0,0.00021961,2]
[310344456,1704481588800,65839.57311532,0.00022,2]
[310344458,1704481612892,527.67,0.00019924,2]
[310344459,1704481613318,527.67,0.00022188,2]
[310344460,1704481648632,175.81,0.00021998,2]
[310344461,1704481649725,784.61,0.00021847,2]
[310344462,1704481659268,482.55,0.00021842,2]
[310344464,1704481747101,23900.0,0.00021856,2]
[310344466,1704481817429,2960.3796,0.00022439,2]
[310344491,1704481831917,-579.59745,0.00022505,2]
[310344534,1704481832382,-108.73362305,0.00022505,2]
[310344539,1704481832417,-1155.32938971,0.00022505,2]
[310344541,1704481832430,-2887.94746135,0.00022505,2]
[310344543,1704481832446,-575.47649961,0.00022505,2]
[310344547,1704481832476,-600.0,0.00022505,2]
[310344550,1704481832490,-659.3325531,0.00022505,2]
[310344552,1704481832503,-1195.37804036,0.00022505,2]
[310344554,1704481832513,-155.14981496,0.00022506,2]
[310344556,1704481832523,-150.0,0.00022506,2]
[310344558,1704481832533,-23207.29757183,0.00022506,2]
[310344562,1704481832564,-707.58241252,0.00022506,2]
[310344564,1704481832576,-1655.05786843,0.00022506,2]
[310344566,1704481832588,-600.1261207,0.00022506,2]
[310344569,1704481832605,-184138.97443052,0.00022506,2]
[310344571,1704481832617,-900.0,0.00022506,2]
[310344633,1704481837604,-283.46060076,0.00022506,2]
[310344634,1704481837616,-716.53939924,0.00022506,2]
[310344635,1704481837768,-472309.331127,0.00022506,2]
[310344636,1704481837778,-395.11,0.00022531,2]
[310344637,1704481837788,-150.0,0.00022539,2]